Department Family,Date Paid,Expense Type,Expense Area,Supplier,Transaction Number,Amount,Vat Inclusive
Crown Prosecution Service ,04/10/22,Right of use asset clearing Buildings,Balance Sheet,Government Property Agency London,00000001/21077,"371,047.63",
Crown Prosecution Service ,04/10/22,Crown Court Very High Cost Cases Full Scheme,East Midlands Complex Casework Unit,Seven Bedford Row,181065 al1,"92,685.58",Y
Crown Prosecution Service ,04/10/22,Crown Court Graduated Fee Scheme,Thames Chiltern Crown Court Unit,4 Breams Buildings,321287 stkc,"82,395.42",Y
Crown Prosecution Service ,04/10/22,Recoverable VAT control,Balance Sheet,Cabinet Office RM Shared Services,3821362,"12,139.11",Y
Crown Prosecution Service ,04/10/22,Other Staff Costs,DID Security and Information,Cabinet Office RM Shared Services,3821362,"60,695.54",
Crown Prosecution Service ,04/10/22,Recoverable VAT control,Balance Sheet,Cabinet Office RM Shared Services,3821363,"12,139.11",Y
Crown Prosecution Service ,04/10/22,Other Staff Costs,DID Security and Information,Cabinet Office RM Shared Services,3821363,"60,695.54",
Crown Prosecution Service ,04/10/22,Crown Court Graduated Fee Scheme,South West Crown Court: North,Devon Chambers,53861 JM,"49,922.30",Y
Crown Prosecution Service ,04/10/22,Apprenticeship Levy payments Permanent,Other Corporate Programme Payments,HM Revenue and Customs,948PB000021422306,"114,810.66",
Crown Prosecution Service ,04/10/22,Apprenticeship Levy payments Permanent,Other Corporate Admin Payments,HM Revenue and Customs,948PB000021422306,"7,328.34",
Crown Prosecution Service ,05/10/22,Crown Court Graduated Fee Scheme,London North Complex Casework Unit,2 Hare Court Chambers -Chambers of Orlando Pownall,117222,"25,242.12",Y
Crown Prosecution Service ,05/10/22,Crown Court Graduated Fee Scheme,South East Complex Casework Unit,23 Essex Street Chambers,194943-JM,"86,102.46",Y
Crown Prosecution Service ,05/10/22,Crown Court Graduated Fee Scheme,North East Crown Court Unit,23 Essex Street Chambers,197090-FF,"27,808.20",Y
Crown Prosecution Service ,05/10/22,HR investigation services,PF Employee Relations,Axis HR Consulting London,249,"29,724.00",
Crown Prosecution Service ,05/10/22,Crown Court Very High Cost Cases Full Scheme,East Midlands Complex Casework Unit,18 St John Street - Chambers of Peter Birkett QC,398615/MBKC,"28,607.84",Y
Crown Prosecution Service ,05/10/22,Other Staff Costs,Other Corporate Admin Payments,Reward Gateway (UK) Ltd,UK064158SI,"36,399.60",Y
Crown Prosecution Service ,06/10/22,Crown Court Graduated Fee Scheme,London South Complex Casework Unit,Red Lion Chambers (18 RLC),152111KMTtrial19/4/2,"84,779.60",Y
Crown Prosecution Service ,06/10/22,External legal advice - Civil litigation,Other Corporate Programme Payments,Government Legal Department,514821,"139,050.86",Y
Crown Prosecution Service ,06/10/22,External legal advice - Civil litigation,Other Corporate Programme Payments,Government Legal Department,515905,"103,572.78",Y
Crown Prosecution Service ,06/10/22,Crown Court Graduated Fee Scheme,Cymru Wales South East Crown Court,30 Park Place Chambers,628798-1/CPI,"32,548.44",
Crown Prosecution Service ,06/10/22,Crown Court Graduated Fee Scheme,Cymru Wales South East Crown Court,30 Park Place Chambers,628798-1/CR,"80,419.56",
Crown Prosecution Service ,07/10/22,External legal advice - HR casework,PF Litigation,Government Legal Department,516842,"51,729.08",Y
Crown Prosecution Service ,07/10/22,UK Hotels,CFO Commercial,Clarity Travel Management,CPSHQ021022,58.00,Y
Crown Prosecution Service ,07/10/22,Overseas Air travel,Private Office,Clarity Travel Management,CPSHQ021022,64.00,
Crown Prosecution Service ,07/10/22,UK Hotels,DID DTS Change,Clarity Travel Management,CPSHQ021022,"1,097.06",Y
Crown Prosecution Service ,07/10/22,UK Hotels,Central Operational Training,Clarity Travel Management,CPSHQ021022,324.95,Y
Crown Prosecution Service ,07/10/22,UK Hotels,DID Central Leadership Team,Clarity Travel Management,CPSHQ021022,858.10,Y
Crown Prosecution Service ,07/10/22,UK Hotels,Permanent Transfer Costs,Clarity Travel Management,CPSHQ021022,354.90,Y
Crown Prosecution Service ,07/10/22,UK Hotels,PF HR Business Partnering,Clarity Travel Management,CPSHQ021022,72.00,Y
Crown Prosecution Service ,07/10/22,UK Hotels,PF Analytics and Workforce Plan,Clarity Travel Management,CPSHQ021022,286.02,Y
Crown Prosecution Service ,07/10/22,UK Hotels,DID Security and Information,Clarity Travel Management,CPSHQ021022,166.00,Y
Crown Prosecution Service ,07/10/22,UK Hotels,DID Operational Process,Clarity Travel Management,CPSHQ021022,663.98,Y
Crown Prosecution Service ,07/10/22,UK Hotels,CFO Finance Operations,Clarity Travel Management,CPSHQ021022,133.00,Y
Crown Prosecution Service ,07/10/22,UK Hotels,DID DTS Technology,Clarity Travel Management,CPSHQ021022,871.85,Y
Crown Prosecution Service ,07/10/22,UK Hotels,Court Business Unit,Clarity Travel Management,CPSHQ021022,135.48,Y
Crown Prosecution Service ,07/10/22,UK Hotels,Director of Legal Services,Clarity Travel Management,CPSHQ021022,278.20,Y
Crown Prosecution Service ,07/10/22,UK Hotels,PF People and Business Change,Clarity Travel Management,CPSHQ021022,223.02,Y
Crown Prosecution Service ,07/10/22,Overseas Hotels,Private Office,Clarity Travel Management,CPSHQ021022,"1,853.94",Y
Crown Prosecution Service ,07/10/22,UK Hotels,PF Resourcing,Clarity Travel Management,CPSHQ021022,252.01,Y
Crown Prosecution Service ,07/10/22,UK Hotels,Operational Business Support,Clarity Travel Management,CPSHQ021022,509.80,Y
Crown Prosecution Service ,07/10/22,UK National rail travel,PF Learning and Development General,Clarity Travel Management,CPSHQ021022,"1,595.20",
Crown Prosecution Service ,07/10/22,UK National rail travel,Operational Business Support,Clarity Travel Management,CPSHQ021022,274.20,
Crown Prosecution Service ,07/10/22,UK National rail travel,PF HR Business Partnering,Clarity Travel Management,CPSHQ021022,653.50,
Crown Prosecution Service ,07/10/22,UK National rail travel,PF Analytics and Workforce Plan,Clarity Travel Management,CPSHQ021022,351.10,
Crown Prosecution Service ,07/10/22,UK National rail travel,Corporate Communication,Clarity Travel Management,CPSHQ021022,77.50,
Crown Prosecution Service ,07/10/22,UK National rail travel,Legal Trainee Salaries,Clarity Travel Management,CPSHQ021022,93.90,
Crown Prosecution Service ,07/10/22,UK National rail travel,DID Central Leadership Team,Clarity Travel Management,CPSHQ021022,162.50,
Crown Prosecution Service ,07/10/22,UK National rail travel,Private Office,Clarity Travel Management,CPSHQ021022,100.60,
Crown Prosecution Service ,07/10/22,UK National rail travel,Permanent Transfer Costs,Clarity Travel Management,CPSHQ021022,138.60,
Crown Prosecution Service ,07/10/22,UK National rail travel,DID DTS Technology,Clarity Travel Management,CPSHQ021022,"2,283.30",
Crown Prosecution Service ,07/10/22,UK National rail travel,Operational Change,Clarity Travel Management,CPSHQ021022,"2,394.00",
Crown Prosecution Service ,07/10/22,UK National rail travel,PF Resourcing,Clarity Travel Management,CPSHQ021022,351.50,
Crown Prosecution Service ,07/10/22,UK National rail travel,DID Operational Process,Clarity Travel Management,CPSHQ021022,"1,654.50",
Crown Prosecution Service ,07/10/22,UK National rail travel,DID Security and Information,Clarity Travel Management,CPSHQ021022,563.00,
Crown Prosecution Service ,07/10/22,UK National rail travel,PF HR Systems and Information,Clarity Travel Management,CPSHQ021022,263.50,
Crown Prosecution Service ,07/10/22,UK National rail travel,PF HR Operations,Clarity Travel Management,CPSHQ021022,424.30,
Crown Prosecution Service ,07/10/22,UK National rail travel,PF People and Business Change,Clarity Travel Management,CPSHQ021022,"1,291.80",
Crown Prosecution Service ,07/10/22,UK National rail travel,Court Business Unit,Clarity Travel Management,CPSHQ021022,698.70,
Crown Prosecution Service ,07/10/22,UK National rail travel,Director of Legal Services,Clarity Travel Management,CPSHQ021022,197.30,
Crown Prosecution Service ,07/10/22,UK National rail travel,Strategy and Policy,Clarity Travel Management,CPSHQ021022,"3,900.30",
Crown Prosecution Service ,07/10/22,UK National rail travel,Operational Performance,Clarity Travel Management,CPSHQ021022,"1,231.60",
Crown Prosecution Service ,07/10/22,UK National rail travel,Central Operational Training,Clarity Travel Management,CPSHQ021022,76.70,
Crown Prosecution Service ,07/10/22,UK National rail travel,DTUS,Clarity Travel Management,CPSHQ021022,146.10,
Crown Prosecution Service ,07/10/22,UK National rail travel,CFO Estates,Clarity Travel Management,CPSHQ021022,441.80,
Crown Prosecution Service ,07/10/22,UK National rail travel,Chief Finance Officer,Clarity Travel Management,CPSHQ021022,264.10,
Crown Prosecution Service ,07/10/22,UK National rail travel,Press Office,Clarity Travel Management,CPSHQ021022,187.40,
Crown Prosecution Service ,07/10/22,UK National rail travel,DID DTS Change,Clarity Travel Management,CPSHQ021022,"1,361.70",
Crown Prosecution Service ,07/10/22,UK Hotels,Operational Change,Clarity Travel Management,CPSHQ021022,865.81,Y
Crown Prosecution Service ,10/10/22,IT services,DTS Programme Project Cost,PA Consulting Services Limited,0000019015,"48,566.00",Y
Crown Prosecution Service ,10/10/22,General Management Consultancy Advice,DTS Programme Project Cost,PA Consulting Services Limited,0000019015,"58,999.00",Y
Crown Prosecution Service ,10/10/22,New Works: non capital,Estate and FM: Programme,HM Revenue and Customs,18000029132022,"651,658.30",
Crown Prosecution Service ,10/10/22,IT services,PSN Services Contract,Lumen Technologies UK Ltd,430724/1026137,"117,639.82",
Crown Prosecution Service ,10/10/22,Recoverable VAT control,Balance Sheet,Lumen Technologies UK Ltd,430724/1026137,"23,527.96",Y
Crown Prosecution Service ,10/10/22,Recoverable VAT control,Balance Sheet,Lumen Technologies UK Ltd,612023351/1108635,"13,051.17",Y
Crown Prosecution Service ,10/10/22,IT services,PSN Connectivity Contract,Lumen Technologies UK Ltd,612023351/1108635,"65,255.85",
Crown Prosecution Service ,10/10/22,IT services,DTS Programme Project Cost,WIPRO Holdings London,90158646,"28,872.00",Y
Crown Prosecution Service ,10/10/22,IT services,DTS Programme Project Cost,WIPRO Holdings London,90158703,"27,985.20",Y
Crown Prosecution Service ,10/10/22,IT services,DTS Programme Project Cost,CGI IT UK Ltd,GB014090476,"72,835.60",Y
Crown Prosecution Service ,10/10/22,Recoverable VAT control,Balance Sheet,CGI IT UK Ltd,GB014090567,"20,622.68",Y
Crown Prosecution Service ,10/10/22,IT services,Service Desk Contract,CGI IT UK Ltd,GB014090567,"103,113.38",
Crown Prosecution Service ,10/10/22,IT services,DTS Programme Project Cost,CGI IT UK Ltd,GB014090930,"29,742.00",Y
Crown Prosecution Service ,10/10/22,IT services,DTS Programme Project Cost,CGI IT UK Ltd,GB014091011,"45,197.20",Y
Crown Prosecution Service ,10/10/22,IT services,DTS Programme Project Cost,ICS.AI Ltd Basingstoke,INV-654,"45,492.60",Y
Crown Prosecution Service ,11/10/22,IT non capital software licences,Legal Reference and ICT Licenses,Trustmarque Solutions Ltd,2349572,"3,386,286.77",
Crown Prosecution Service ,11/10/22,Recoverable VAT control,Balance Sheet,Trustmarque Solutions Ltd,2349572,"677,257.36",Y
Crown Prosecution Service ,11/10/22,Recoverable VAT control,Balance Sheet,DX Network Services Ltd,83624418,"10,702.31",Y
Crown Prosecution Service ,11/10/22,Courier Services,Estate and FM: Administration,DX Network Services Ltd,83624418,"3,353.63",
Crown Prosecution Service ,11/10/22,Courier Services,South East Business Centre,DX Network Services Ltd,83624418,"5,679.02",
Crown Prosecution Service ,11/10/22,Courier Services,Wessex Area Business Centre,DX Network Services Ltd,83624418,"2,981.53",
Crown Prosecution Service ,11/10/22,Courier Services,Thames and Chiltern Area Business Centre,DX Network Services Ltd,83624418,"2,109.20",
Crown Prosecution Service ,11/10/22,Courier Services,South West Area Business Centre,DX Network Services Ltd,83624418,"2,334.48",
Crown Prosecution Service ,11/10/22,Courier Services,North West Area Business Centre,DX Network Services Ltd,83624418,"4,864.77",
Crown Prosecution Service ,11/10/22,Courier Services,East Midlands Area Business Centre,DX Network Services Ltd,83624418,"5,709.67",
Crown Prosecution Service ,11/10/22,Courier Services,West Midlands Area Business Centre,DX Network Services Ltd,83624418,"4,385.44",
Crown Prosecution Service ,11/10/22,Courier Services,Estate and FM: Programme,DX Network Services Ltd,83624418,"14,509.14",
Crown Prosecution Service ,11/10/22,Courier Services,East of England Area Business Centre,DX Network Services Ltd,83624418,"1,313.36",
Crown Prosecution Service ,11/10/22,Courier Services,London North Complex Casework Unit,DX Network Services Ltd,83624418,18.27,
Crown Prosecution Service ,11/10/22,Courier Services,North East Area Business Centre,DX Network Services Ltd,83624418,768.55,
Crown Prosecution Service ,11/10/22,Courier Services,Yorkshire and Humberside Area Business Centre,DX Network Services Ltd,83624418,"2,694.30",
Crown Prosecution Service ,11/10/22,Courier Services,Mersey Cheshire Area Business Centre,DX Network Services Ltd,83624418,"1,105.86",
Crown Prosecution Service ,11/10/22,Courier Services,Cymru Wales Area Business Centre,DX Network Services Ltd,83624418,"1,684.32",
Crown Prosecution Service ,11/10/22,IT non capital software licences,Legal Reference and ICT Licenses,Clearvision (CM) 2005 Ltd,cvuk19553,"37,628.72",Y
Crown Prosecution Service ,11/10/22,IT non capital software licences,Legal Reference and ICT Licenses,Pluralsight LLC Utah,INV11399502,"40,660.53",
Crown Prosecution Service ,11/10/22,IT non capital equipment and consumables,DTS Programme Project Cost,ACS Systems UK Limited Northampton,NV421995,"1,407,766.80",Y
Crown Prosecution Service ,12/10/22,HR investigation services,PF Employee Relations,Squire Patton Boggs Manchester,2720266,"48,000.00",Y
Crown Prosecution Service ,12/10/22,Other publicity and media costs,PF Operational HR Costs,Law Society,SIN0011615/130822,"72,000.00",Y
Crown Prosecution Service ,13/10/22,Crown Court Graduated Fee Scheme,London North Complex Casework Unit,Foundry Chambers (9-12 Bell Yard),195134/ZD,"38,482.80",Y
Crown Prosecution Service ,13/10/22,Crown Court Graduated Fee Scheme,London North Complex Casework Unit,9 Gough Chambers London,TL381819,"76,972.20",Y
Crown Prosecution Service ,14/10/22,IT services,DTS Programme Project Cost,PA Consulting Services Limited,0000019513,"99,300.00",Y
Crown Prosecution Service ,14/10/22,Crown Court Graduated Fee Scheme,South West Complex Casework Unit,Albion Chambers,201247 AV .,"80,014.62",Y
Crown Prosecution Service ,14/10/22,Crown Court Graduated Fee Scheme,South West Complex Casework Unit,Albion Chambers,201247 ERH .,"40,049.52",Y
Crown Prosecution Service ,14/10/22,IT services,Other IT costs,Lumen Technologies UK Ltd,612018054/1110936,"45,600.97",Y
Crown Prosecution Service ,14/10/22,IT services,DTS Programme Project Cost,Mobilise Cloud Services Limited London,CPSINV048,"35,878.52",Y
Crown Prosecution Service ,14/10/22,Other managed/contractor services,DTS Programme Project Cost,Equal Experts London,INV-11213,"85,641.00",Y
Crown Prosecution Service ,14/10/22,IT services,DTS Programme Project Cost,eSynergy Solutions Ltd,INV00000800,"28,800.00",Y
Crown Prosecution Service ,14/10/22,IT services,DTS Programme Project Cost,eSynergy Solutions Ltd,INV00000801,"50,400.00",Y
Crown Prosecution Service ,14/10/22,IT services,DTS Programme Project Cost,eSynergy Solutions Ltd,INV00000802,"41,310.00",Y
Crown Prosecution Service ,14/10/22,IT services,DTS Programme Project Cost,eSynergy Solutions Ltd,INV00000803,"104,520.00",Y
Crown Prosecution Service ,14/10/22,IT services,DTS Programme Project Cost,eSynergy Solutions Ltd,INV00000805,"51,660.00",Y
Crown Prosecution Service ,14/10/22,IT services,DTS Programme Project Cost,eSynergy Solutions Ltd,INV00000810,"78,948.00",Y
Crown Prosecution Service ,14/10/22,Professional subscriptions and memberships,West Midlands Area Business Centre,Law Society,INV200695447,"30,078.00",
Crown Prosecution Service ,14/10/22,IT non capital software licences,CFO Commercial,Jaggaer London,INVUK2117,"72,086.39",Y
Crown Prosecution Service ,17/10/22,IT non capital software licences,Legal Reference and ICT Licenses,Trustmarque Solutions Ltd,SINV23498683,"56,443.87",
Crown Prosecution Service ,17/10/22,Recoverable VAT control,Balance Sheet,Trustmarque Solutions Ltd,SINV23498683,"11,288.77",Y
Crown Prosecution Service ,18/10/22,Recoverable VAT control,Balance Sheet,Cabinet Office RM Shared Services,3822130,"12,139.11",Y
Crown Prosecution Service ,18/10/22,Other Staff Costs,DID Security and Information,Cabinet Office RM Shared Services,3822130,"60,695.54",
Crown Prosecution Service ,18/10/22,IT non capital software licences,Legal Reference and ICT Licenses,Oracle Corporation UK Ltd,460053384,"24,547.18",
Crown Prosecution Service ,18/10/22,Recoverable VAT control,Balance Sheet,Oracle Corporation UK Ltd,460053384,"4,909.44",Y
Crown Prosecution Service ,19/10/22,National non domestic rates,Estate and FM: Programme,Government Property Agency London,00000001/14073SUPP2,"35,561.25",
Crown Prosecution Service ,19/10/22,Landlord service charge,Estate and FM: Programme,Government Property Agency London,00000001/14086SUPP2,"159,740.92",
Crown Prosecution Service ,19/10/22,Crown Court Graduated Fee Scheme,London North Complex Casework Unit,QEB Hollis Whiteman Chambers,CAKC 109903 A,"48,496.44",Y
Crown Prosecution Service ,19/10/22,UK Hotels,PF Resourcing,Clarity Travel Management,CPSHQ091022,730.56,Y
Crown Prosecution Service ,19/10/22,UK Hotels,DID Security and Information,Clarity Travel Management,CPSHQ091022,535.40,Y
Crown Prosecution Service ,19/10/22,UK Hotels,DTUS,Clarity Travel Management,CPSHQ091022,92.00,Y
Crown Prosecution Service ,19/10/22,UK Hotels,Court Business Unit,Clarity Travel Management,CPSHQ091022,123.00,Y
Crown Prosecution Service ,19/10/22,UK Hotels,DID DTS Change,Clarity Travel Management,CPSHQ091022,274.15,Y
Crown Prosecution Service ,19/10/22,UK Hotels,Central Operational Training,Clarity Travel Management,CPSHQ091022,224.60,Y
Crown Prosecution Service ,19/10/22,UK Hotels,PF People and Business Change,Clarity Travel Management,CPSHQ091022,118.70,Y
Crown Prosecution Service ,19/10/22,UK Hotels,Permanent Transfer Costs,Clarity Travel Management,CPSHQ091022,698.19,Y
Crown Prosecution Service ,19/10/22,UK Hotels,DID Central Leadership Team,Clarity Travel Management,CPSHQ091022,535.00,Y
Crown Prosecution Service ,19/10/22,UK Hotels,DID DTS Technology,Clarity Travel Management,CPSHQ091022,553.70,Y
Crown Prosecution Service ,19/10/22,UK Hotels,Operational Change,Clarity Travel Management,CPSHQ091022,569.70,Y
Crown Prosecution Service ,19/10/22,UK Hotels,PF HR Business Partnering,Clarity Travel Management,CPSHQ091022,78.00,Y
Crown Prosecution Service ,19/10/22,UK Hotels,Chief Finance Officer,Clarity Travel Management,CPSHQ091022,231.99,Y
Crown Prosecution Service ,19/10/22,UK National rail travel,Legal Trainee Salaries,Clarity Travel Management,CPSHQ091022,77.10,
Crown Prosecution Service ,19/10/22,UK National rail travel,PF HR Systems and Information,Clarity Travel Management,CPSHQ091022,19.40,
Crown Prosecution Service ,19/10/22,UK National rail travel,PF Legal Training,Clarity Travel Management,CPSHQ091022,116.10,
Crown Prosecution Service ,19/10/22,UK National rail travel,Operational Change,Clarity Travel Management,CPSHQ091022,"1,656.05",
Crown Prosecution Service ,19/10/22,UK National rail travel,CFO Estates,Clarity Travel Management,CPSHQ091022,201.70,
Crown Prosecution Service ,19/10/22,UK National rail travel,Operational Performance,Clarity Travel Management,CPSHQ091022,867.10,
Crown Prosecution Service ,19/10/22,UK Air travel,Private Office,Clarity Travel Management,CPSHQ091022,"1,534.41",
Crown Prosecution Service ,19/10/22,UK National rail travel,Chief Finance Officer,Clarity Travel Management,CPSHQ091022,744.80,
Crown Prosecution Service ,19/10/22,UK National rail travel,PF HR Business Partnering,Clarity Travel Management,CPSHQ091022,431.00,
Crown Prosecution Service ,19/10/22,UK National rail travel,CFO Financial Reporting,Clarity Travel Management,CPSHQ091022,26.90,
Crown Prosecution Service ,19/10/22,UK National rail travel,DID Security and Information,Clarity Travel Management,CPSHQ091022,823.10,
Crown Prosecution Service ,19/10/22,UK National rail travel,CFO Fin System Change and Costings,Clarity Travel Management,CPSHQ091022,799.50,
Crown Prosecution Service ,19/10/22,UK National rail travel,Court Business Unit,Clarity Travel Management,CPSHQ091022,"1,606.60",
Crown Prosecution Service ,19/10/22,UK National rail travel,PF Analytics and Workforce Plan,Clarity Travel Management,CPSHQ091022,168.50,
Crown Prosecution Service ,19/10/22,UK National rail travel,Permanent Transfer Costs,Clarity Travel Management,CPSHQ091022,188.00,
Crown Prosecution Service ,19/10/22,UK National rail travel,CFO Commercial,Clarity Travel Management,CPSHQ091022,"1,199.50",
Crown Prosecution Service ,19/10/22,UK National rail travel,Strategy and Policy,Clarity Travel Management,CPSHQ091022,"3,969.25",
Crown Prosecution Service ,19/10/22,UK National rail travel,DID DTS Change,Clarity Travel Management,CPSHQ091022,"2,986.25",
Crown Prosecution Service ,19/10/22,UK National rail travel,PF Learning and Development General,Clarity Travel Management,CPSHQ091022,"1,268.65",
Crown Prosecution Service ,19/10/22,UK National rail travel,DID Operational Process,Clarity Travel Management,CPSHQ091022,516.30,
Crown Prosecution Service ,19/10/22,UK National rail travel,DID DTS Technology,Clarity Travel Management,CPSHQ091022,"2,057.10",
Crown Prosecution Service ,19/10/22,UK National rail travel,Press Office,Clarity Travel Management,CPSHQ091022,337.10,
Crown Prosecution Service ,19/10/22,UK National rail travel,Operational Business Support,Clarity Travel Management,CPSHQ091022,"1,646.70",
Crown Prosecution Service ,19/10/22,UK National rail travel,PF HR Operations,Clarity Travel Management,CPSHQ091022,998.20,
Crown Prosecution Service ,19/10/22,UK National rail travel,CFO Strategic Financial Planning,Clarity Travel Management,CPSHQ091022,46.50,
Crown Prosecution Service ,19/10/22,UK National rail travel,PF Resourcing,Clarity Travel Management,CPSHQ091022,633.70,
Crown Prosecution Service ,19/10/22,UK National rail travel,Central Legal Training Team,Clarity Travel Management,CPSHQ091022,770.30,
Crown Prosecution Service ,19/10/22,UK National rail travel,Director of Legal Services,Clarity Travel Management,CPSHQ091022,975.40,
Crown Prosecution Service ,19/10/22,UK National rail travel,PF HR Business Management,Clarity Travel Management,CPSHQ091022,30.40,
Crown Prosecution Service ,19/10/22,UK National rail travel,DID Central Leadership Team,Clarity Travel Management,CPSHQ091022,58.10,
Crown Prosecution Service ,19/10/22,UK National rail travel,PF People and Business Change,Clarity Travel Management,CPSHQ091022,709.15,
Crown Prosecution Service ,19/10/22,UK National rail travel,Private Office,Clarity Travel Management,CPSHQ091022,895.00,
Crown Prosecution Service ,19/10/22,UK National rail travel,Corporate Communication,Clarity Travel Management,CPSHQ091022,889.40,
Crown Prosecution Service ,19/10/22,UK National rail travel,Central Operational Training,Clarity Travel Management,CPSHQ091022,56.40,
Crown Prosecution Service ,19/10/22,UK National rail travel,DTUS,Clarity Travel Management,CPSHQ091022,78.10,
Crown Prosecution Service ,19/10/22,UK National rail travel,Compliance and Assurance,Clarity Travel Management,CPSHQ091022,976.30,
Crown Prosecution Service ,19/10/22,Professional subscriptions and memberships,Mersey Cheshire Area Business Centre,Solicitors Regulation Authority Birmingham,INV200698662,"33,725.00",
Crown Prosecution Service ,19/10/22,Professional subscriptions and memberships,CPS Direct Out of Hours Prosecutors,Solicitors Regulation Authority Birmingham,INV200703845,"41,184.00",
Crown Prosecution Service ,19/10/22,Professional subscriptions and memberships,North West Area Business Centre,Solicitors Regulation Authority Birmingham,INV200708183,"34,606.00",
Crown Prosecution Service ,20/10/22,Crown Court Graduated Fee Scheme,Thames and Chiltern RASSO Unit,23 Essex Street Chambers,193464-PD-TRIAL,"31,025.58",Y
Crown Prosecution Service ,20/10/22,Crown Court Very High Cost Cases Full Scheme,SEOC Team 1,Foundry Chambers (9-12 Bell Yard),197922/PS,"54,796.00",Y
Crown Prosecution Service ,20/10/22,Recoverable VAT control,Balance Sheet,HM Treasury,44889,"9,448.65",Y
Crown Prosecution Service ,20/10/22,Shared services,Other Corporate Admin Payments,HM Treasury,44889,"47,243.25",
Crown Prosecution Service ,20/10/22,UK Hotels,Operational Change,Clarity Travel Management,CPSHQ161022,617.60,Y
Crown Prosecution Service ,20/10/22,UK National rail travel,Director of Legal Services,Clarity Travel Management,CPSHQ161022,445.30,
Crown Prosecution Service ,20/10/22,UK Hotels,DID DTS Technology,Clarity Travel Management,CPSHQ161022,"2,100.32",Y
Crown Prosecution Service ,20/10/22,UK Hotels,CFO Finance Operations,Clarity Travel Management,CPSHQ161022,133.00,Y
Crown Prosecution Service ,20/10/22,UK Hotels,Director of Legal Services,Clarity Travel Management,CPSHQ161022,382.80,Y
Crown Prosecution Service ,20/10/22,UK Hotels,Permanent Transfer Costs,Clarity Travel Management,CPSHQ161022,830.68,Y
Crown Prosecution Service ,20/10/22,UK Hotels,PF Learning and Development General,Clarity Travel Management,CPSHQ161022,"1,005.23",Y
Crown Prosecution Service ,20/10/22,UK Hotels,Court Business Unit,Clarity Travel Management,CPSHQ161022,704.06,Y
Crown Prosecution Service ,20/10/22,UK Hotels,CFO Commercial,Clarity Travel Management,CPSHQ161022,236.00,Y
Crown Prosecution Service ,20/10/22,UK Hotels,DID Security and Information,Clarity Travel Management,CPSHQ161022,115.30,Y
Crown Prosecution Service ,20/10/22,UK Hotels,DTUS,Clarity Travel Management,CPSHQ161022,104.00,Y
Crown Prosecution Service ,20/10/22,UK Hotels,DID DTS Change,Clarity Travel Management,CPSHQ161022,"3,517.54",Y
Crown Prosecution Service ,20/10/22,UK Hotels,PF HR Business Partnering,Clarity Travel Management,CPSHQ161022,92.38,Y
Crown Prosecution Service ,20/10/22,UK Hotels,CFO Strategic Financial Planning,Clarity Travel Management,CPSHQ161022,75.00,Y
Crown Prosecution Service ,20/10/22,UK Hotels,Strategy and Policy,Clarity Travel Management,CPSHQ161022,473.70,Y
Crown Prosecution Service ,20/10/22,UK Hotels,DID Operational Process,Clarity Travel Management,CPSHQ161022,386.50,Y
Crown Prosecution Service ,20/10/22,UK Hotels,Press Office,Clarity Travel Management,CPSHQ161022,137.02,Y
Crown Prosecution Service ,20/10/22,UK Hotels,Operational Performance,Clarity Travel Management,CPSHQ161022,199.80,Y
Crown Prosecution Service ,20/10/22,UK Hotels,CFO Fin System Change and Costings,Clarity Travel Management,CPSHQ161022,443.40,Y
Crown Prosecution Service ,20/10/22,UK Hotels,Operational Business Support,Clarity Travel Management,CPSHQ161022,321.00,Y
Crown Prosecution Service ,20/10/22,UK National rail travel,Corporate Communication,Clarity Travel Management,CPSHQ161022,80.00,
Crown Prosecution Service ,20/10/22,UK National rail travel,CFO Commercial,Clarity Travel Management,CPSHQ161022,774.70,
Crown Prosecution Service ,20/10/22,UK National rail travel,DID Operational Process,Clarity Travel Management,CPSHQ161022,104.30,
Crown Prosecution Service ,20/10/22,UK National rail travel,Central Operational Training,Clarity Travel Management,CPSHQ161022,102.60,
Crown Prosecution Service ,20/10/22,UK National rail travel,Permanent Transfer Costs,Clarity Travel Management,CPSHQ161022,456.40,
Crown Prosecution Service ,20/10/22,UK National rail travel,DID DTS Change,Clarity Travel Management,CPSHQ161022,"1,754.75",
Crown Prosecution Service ,20/10/22,UK National rail travel,DID DTS Technology,Clarity Travel Management,CPSHQ161022,"3,385.60",
Crown Prosecution Service ,20/10/22,UK National rail travel,CFO Fin System Change and Costings,Clarity Travel Management,CPSHQ161022,22.40,
Crown Prosecution Service ,20/10/22,UK National rail travel,Press Office,Clarity Travel Management,CPSHQ161022,43.80,
Crown Prosecution Service ,20/10/22,UK National rail travel,DID Central Leadership Team,Clarity Travel Management,CPSHQ161022,969.00,
Crown Prosecution Service ,20/10/22,UK National rail travel,Compliance and Assurance,Clarity Travel Management,CPSHQ161022,600.30,
Crown Prosecution Service ,20/10/22,Overseas Air travel,Private Office,Clarity Travel Management,CPSHQ161022,471.27,
Crown Prosecution Service ,20/10/22,UK National rail travel,Private Office,Clarity Travel Management,CPSHQ161022,355.10,
Crown Prosecution Service ,20/10/22,UK National rail travel,Operational Change,Clarity Travel Management,CPSHQ161022,"2,241.00",
Crown Prosecution Service ,20/10/22,UK National rail travel,CFO Financial Reporting,Clarity Travel Management,CPSHQ161022,23.20,
Crown Prosecution Service ,20/10/22,UK National rail travel,PF HR Business Management,Clarity Travel Management,CPSHQ161022,481.90,
Crown Prosecution Service ,20/10/22,UK National rail travel,PF Learning and Development General,Clarity Travel Management,CPSHQ161022,"1,957.20",
Crown Prosecution Service ,20/10/22,UK National rail travel,PF HR Systems and Information,Clarity Travel Management,CPSHQ161022,282.80,
Crown Prosecution Service ,20/10/22,UK National rail travel,Court Business Unit,Clarity Travel Management,CPSHQ161022,"1,261.10",
Crown Prosecution Service ,20/10/22,UK National rail travel,Strategy and Policy,Clarity Travel Management,CPSHQ161022,882.50,
Crown Prosecution Service ,20/10/22,UK National rail travel,PF Resourcing,Clarity Travel Management,CPSHQ161022,"2,463.05",
Crown Prosecution Service ,20/10/22,UK National rail travel,PF Employee Relations,Clarity Travel Management,CPSHQ161022,29.25,
Crown Prosecution Service ,20/10/22,UK National rail travel,DID Security and Information,Clarity Travel Management,CPSHQ161022,"3,128.50",
Crown Prosecution Service ,20/10/22,UK National rail travel,Operational Performance,Clarity Travel Management,CPSHQ161022,"1,119.20",
Crown Prosecution Service ,20/10/22,UK National rail travel,DTUS,Clarity Travel Management,CPSHQ161022,89.10,
Crown Prosecution Service ,20/10/22,UK National rail travel,CFO Estates,Clarity Travel Management,CPSHQ161022,154.10,
Crown Prosecution Service ,20/10/22,UK National rail travel,PF Analytics and Workforce Plan,Clarity Travel Management,CPSHQ161022,758.30,
Crown Prosecution Service ,20/10/22,UK National rail travel,PF HR Business Partnering,Clarity Travel Management,CPSHQ161022,"2,367.70",
Crown Prosecution Service ,20/10/22,UK National rail travel,PF People and Business Change,Clarity Travel Management,CPSHQ161022,"2,054.15",
Crown Prosecution Service ,20/10/22,UK National rail travel,PF HR Operations,Clarity Travel Management,CPSHQ161022,"1,856.40",
Crown Prosecution Service ,20/10/22,UK National rail travel,Chief Finance Officer,Clarity Travel Management,CPSHQ161022,"1,550.20",
Crown Prosecution Service ,20/10/22,UK Hotels,Private Office,Clarity Travel Management,CPSHQ161022,696.78,Y
Crown Prosecution Service ,20/10/22,Professional subscriptions and memberships,London North Management Team,Solicitors Regulation Authority Birmingham,INV200699835,"56,628.00",
Crown Prosecution Service ,20/10/22,Professional subscriptions and memberships,London South Management Team,Solicitors Regulation Authority Birmingham,INV200704129,"50,503.00",
Crown Prosecution Service ,21/10/22,Property management fees,Estate and FM: Programme,Government Property Agency London,00000001/18732,"7,472.47",Y
Crown Prosecution Service ,21/10/22,National non domestic rates,Estate and FM: Programme,Government Property Agency London,00000001/18732,"6,202.23",
Crown Prosecution Service ,21/10/22,Landlord service charge,Estate and FM: Programme,Government Property Agency London,00000001/18732,"4,654.18",
Crown Prosecution Service ,21/10/22,Lease liability non current lease payments,Balance Sheet,Government Property Agency London,00000001/18732,"18,750.00",
Crown Prosecution Service ,21/10/22,Property management fees,Estate and FM: Programme,Government Property Agency London,00000001/20362,"6,227.06",
Crown Prosecution Service ,21/10/22,Lease liability non current lease payments,Balance Sheet,Government Property Agency London,00000001/20362,"18,750.00",
Crown Prosecution Service ,21/10/22,Landlord service charge,Estate and FM: Programme,Government Property Agency London,00000001/20362,"4,654.18",
Crown Prosecution Service ,21/10/22,National non domestic rates,Estate and FM: Programme,Government Property Agency London,00000001/20362,"6,202.23",
Crown Prosecution Service ,21/10/22,Telephony mobile phones and dongles,Intl Liaison Prosecutors,"Foreign, Commonwealth and Development Office",20000827,207.00,
Crown Prosecution Service ,21/10/22,Office equipment and furniture Non capital purchases,Intl Liaison Prosecutors,"Foreign, Commonwealth and Development Office",20000827,137.98,
Crown Prosecution Service ,21/10/22,Telephony mobile phones and dongles,Intl Liaison Prosecutors,"Foreign, Commonwealth and Development Office",20000827,8.11,
Crown Prosecution Service ,21/10/22,Overseas Hotels,Intl External Funding,"Foreign, Commonwealth and Development Office",20000827,334.89,
Crown Prosecution Service ,21/10/22,Telephony mobile phones and dongles,Intl Liaison Prosecutors,"Foreign, Commonwealth and Development Office",20000827,124.78,
Crown Prosecution Service ,21/10/22,Salaries Overseas locally employed Admin,Intl Liaison Prosecutors,"Foreign, Commonwealth and Development Office",20000827,"5,644.21",
Crown Prosecution Service ,21/10/22,Salaries Overseas locally employed Admin,Intl Liaison Prosecutors,"Foreign, Commonwealth and Development Office",20000827,966.25,
Crown Prosecution Service ,21/10/22,Telephony mobile phones and dongles,Intl Liaison Prosecutors,"Foreign, Commonwealth and Development Office",20000827,39.43,
Crown Prosecution Service ,21/10/22,Telephony mobile phones and dongles,Intl Liaison Prosecutors,"Foreign, Commonwealth and Development Office",20000827,116.11,
Crown Prosecution Service ,21/10/22,Telephony mobile phones and dongles,Intl Liaison Prosecutors,"Foreign, Commonwealth and Development Office",20000827,9.87,
Crown Prosecution Service ,21/10/22,Office equipment and furniture Non capital purchases,Intl Liaison Prosecutors,"Foreign, Commonwealth and Development Office",20000827,57.97,
Crown Prosecution Service ,21/10/22,Salaries Overseas locally employed Admin,Intl Liaison Prosecutors,"Foreign, Commonwealth and Development Office",20000827,"9,809.23",
Crown Prosecution Service ,21/10/22,Telephony mobile phones and dongles,Intl Liaison Prosecutors,"Foreign, Commonwealth and Development Office",20000827,185.70,
Crown Prosecution Service ,21/10/22,Telephony mobile phones and dongles,Intl External Funding,"Foreign, Commonwealth and Development Office",20000827,141.32,
Crown Prosecution Service ,21/10/22,Telephony mobile phones and dongles,Intl Liaison Prosecutors,"Foreign, Commonwealth and Development Office",20000827,114.35,
Crown Prosecution Service ,21/10/22,Overseas Education School Fees: FCO approved schools,Intl Liaison Prosecutors,"Foreign, Commonwealth and Development Office",20000827,"20,177.49",
Crown Prosecution Service ,21/10/22,Salaries Overseas locally employed Admin,Intl Liaison Prosecutors,"Foreign, Commonwealth and Development Office",20000827,"6,313.05",
Crown Prosecution Service ,21/10/22,Salaries Overseas locally employed Admin,Intl Liaison Prosecutors,"Foreign, Commonwealth and Development Office",20000827,"7,742.44",
Crown Prosecution Service ,21/10/22,Transcriptions and Translation,Other Corporate Programme Payments,AVR Transcription Ltd Bolton,SEP22-CPS-36010,"57,060.69",
Crown Prosecution Service ,21/10/22,Recoverable VAT control,Balance Sheet,AVR Transcription Ltd Bolton,SEP22-CPS-36010,"11,412.13",Y
Crown Prosecution Service ,21/10/22,Crown Court Graduated Fee Scheme,Thames Chiltern Crown Court Unit,4 Breams Buildings,SVW 317495 20/10,"36,966.48",Y
Crown Prosecution Service ,21/10/22,Crown Court Graduated Fee Scheme,East Midlands Complex Casework Unit,2 Bedford Row Chambers,TJA ,"33,403.50",Y
Crown Prosecution Service ,24/10/22,Crown Court Graduated Fee Scheme,Yorkshire and Humberside Complex Casework Unit,Park Square Barristers (No 6 and Sovereign merged),498527/KMKC/TRL1,"27,994.92",Y
Crown Prosecution Service ,24/10/22,Crown Court Graduated Fee Scheme,South East RASSO Unit,2 Harcourt Buildings,CDN/115645,"31,697.40",Y
Crown Prosecution Service ,24/10/22,IT services,DTS Programme Project Cost,CGI IT UK Ltd,GB014091173,"149,306.82",Y
Crown Prosecution Service ,24/10/22,Recoverable VAT control,Balance Sheet,CGI IT UK Ltd,GB014091332,"204,957.14",Y
Crown Prosecution Service ,24/10/22,IT services,Apps and Hosting Contract,CGI IT UK Ltd,GB014091332,"1,024,785.69",
Crown Prosecution Service ,24/10/22,Recoverable VAT control,Balance Sheet,CGI IT UK Ltd,GB014091362,"20,622.68",Y
Crown Prosecution Service ,24/10/22,IT services,Service Desk Contract,CGI IT UK Ltd,GB014091362,"103,113.38",
Crown Prosecution Service ,24/10/22,IT non capital software licences,Legal Reference and ICT Licenses,Avature Limited London,UK03673,"153,120.00",Y
Crown Prosecution Service ,25/10/22,Data Communications,PSN Services Contract,Lumen Technologies UK Ltd,612397599/1111665,"33,546.67",Y
Crown Prosecution Service ,25/10/22,Professional subscriptions and memberships,North East Area Business Centre,Solicitors Regulation Authority Birmingham,INV200718247,"26,479.00",
Crown Prosecution Service ,25/10/22,Professional subscriptions and memberships,North East RASSO Unit,Solicitors Regulation Authority Birmingham,INV200718247,"5,720.00",
Crown Prosecution Service ,26/10/22,Crown Court Graduated Fee Scheme,East Midlands Complex Casework Unit,36 Bedford Row,205912/JJH,"31,258.44",Y
Crown Prosecution Service ,26/10/22,Salary sacrifice suspense,Balance Sheet,Edenred,INV26794462,"25,374.92",
Crown Prosecution Service ,26/10/22,Other Staff Costs,CFO Finance Operations,Edenred,INV26794462,151.00,
Crown Prosecution Service ,27/10/22,New Works: non capital,Estate and FM: Programme,Government Property Agency London,00000001/14435,"40,019.96",Y
Crown Prosecution Service ,27/10/22,New Works: non capital,Estate and FM: Programme,Government Property Agency London,00000001/19430,"67,316.87",Y
Crown Prosecution Service ,27/10/22,New Works: non capital,Estate and FM: Programme,Government Property Agency London,00000001/19486,"78,246.80",Y
Crown Prosecution Service ,27/10/22,New Works: non capital,Estate and FM: Programme,Government Property Agency London,00000001/19488,"87,153.78",Y
Crown Prosecution Service ,27/10/22,Recoverable VAT control,Balance Sheet,Mendip Media Group Ltd Tiverton,0000000199,"6,521.40",Y
Crown Prosecution Service ,27/10/22,Transcriptions and Translation,Other Corporate Programme Payments,Mendip Media Group Ltd Tiverton,0000000199,"32,607.00",
Crown Prosecution Service ,27/10/22,Recoverable VAT control,Balance Sheet,Mendip Media Group Ltd Tiverton,0000000201,"5,804.60",Y
Crown Prosecution Service ,27/10/22,Transcriptions and Translation,Other Corporate Programme Payments,Mendip Media Group Ltd Tiverton,0000000201,"29,023.00",
Crown Prosecution Service ,27/10/22,Crown Court Graduated Fee Scheme,London North Crown Court Unit,2 Kings Bench Walk London,277216-CHE3,"29,191.20",Y
Crown Prosecution Service ,27/10/22,Crown Court Graduated Fee Scheme,London North Crown Court Unit,2 Kings Bench Walk London,277216-MJS3,"44,261.40",Y
Crown Prosecution Service ,28/10/22,Crown Court Very High Cost Cases Full Scheme,East Midlands Complex Casework Unit,Seven Bedford Row,181065 - jpm1,"49,432.15",Y
Crown Prosecution Service ,28/10/22,Magistrates' Court Very High Cost Cases Full Scheme,ILS Extradition Unit,3 Raymond Buildings,250734/CDN/6,"47,357.80",Y
Crown Prosecution Service ,28/10/22,Recoverable VAT control,Balance Sheet,CGI IT UK Ltd,GB014091885,"24,857.60",Y
Crown Prosecution Service ,28/10/22,Intangibles asset purchase clearing CMS,DTS ICT Capital Expenditure,CGI IT UK Ltd,GB014091885,"124,288.00",
Crown Prosecution Service ,28/10/22,Recoverable VAT control,Balance Sheet,CGI IT UK Ltd,GB014091886,"231,148.63",Y
Crown Prosecution Service ,28/10/22,Intangibles asset purchase clearing CMS,DTS ICT Capital Expenditure,CGI IT UK Ltd,GB014091886,"1,155,743.15",
Crown Prosecution Service ,28/10/22,Advice/PreSending Very High Cost Cases Full Scheme,RWD North Unit,Citadel Chambers,TH/683966/YULAN S10,"26,247.50",Y
Crown Prosecution Service ,31/10/22,Crown Court Very High Cost Cases Full Scheme,North West RASSO Unit,St Pauls Chambers Leeds,167071 1,"35,740.00",Y
Crown Prosecution Service ,31/10/22,Crown Court Graduated Fee Scheme,East Midlands Complex Casework Unit,Seven Bedford Row,187105GW1,"29,786.94",Y
Crown Prosecution Service ,31/10/22,IT services,CFO Fin System Change and Costings,Oracle Corporation UK Ltd,460068820,"60,758.88",Y
Crown Prosecution Service ,31/10/22,Professional subscriptions and memberships,Yorkshire and Humberside Area Business Centre,Solicitors Regulation Authority Birmingham,INV200725574,"36,704.00",
Crown Prosecution Service ,31/10/22,Professional subscriptions and memberships,Cymru Wales RASSO unit,Solicitors Regulation Authority Birmingham,INV200727534,"5,148.00",
Crown Prosecution Service ,31/10/22,Professional subscriptions and memberships,Cymru Wales West Crown Court,Solicitors Regulation Authority Birmingham,INV200727534,"2,574.00",
Crown Prosecution Service ,31/10/22,Professional subscriptions and memberships,Cymru Wales Fraud Unit,Solicitors Regulation Authority Birmingham,INV200727534,"1,144.00",
Crown Prosecution Service ,31/10/22,Professional subscriptions and memberships,Cymru Wales South East Magistrates Court,Solicitors Regulation Authority Birmingham,INV200727534,"6,864.00",
Crown Prosecution Service ,31/10/22,Professional subscriptions and memberships,Cymru Wales Management Team,Solicitors Regulation Authority Birmingham,INV200727534,"2,002.00",
Crown Prosecution Service ,31/10/22,Professional subscriptions and memberships,Cymru Wales Complex Casework Unit,Solicitors Regulation Authority Birmingham,INV200727534,"2,288.00",
Crown Prosecution Service ,31/10/22,Professional subscriptions and memberships,Cymru Wales West Magistrates Court,Solicitors Regulation Authority Birmingham,INV200727534,"4,004.00",
Crown Prosecution Service ,31/10/22,Professional subscriptions and memberships,Cymru Wales North Crown Court,Solicitors Regulation Authority Birmingham,INV200727534,"2,574.00",
Crown Prosecution Service ,31/10/22,Professional subscriptions and memberships,Cymru Wales North Magistrates Court,Solicitors Regulation Authority Birmingham,INV200727534,"4,576.00",
Crown Prosecution Service ,31/10/22,Professional subscriptions and memberships,Cymru Wales South East Crown Court,Solicitors Regulation Authority Birmingham,INV200727534,"6,006.00",
